Cogmind - Beta 13 @@@ ROGUE MODE // 2024.03.23 @ 07:23:45 Player: f_ Result: Destroyed by X-57 Shotgunner with Shotgun Performance ------------- Evolutions (2) 1000 Regions Visited (6) 1200 Robots Destroyed (103) 515 Value Destroyed (2467) 2467 Prototype IDs (11) 220 Alien Tech Used (0) 0 Bonus (1331) 1331 TOTAL SCORE: 6733 Bonus ------- High Alert Combat Kills 196 Follower Combat Kills 135 Entered Garrisons 200 Used RIF Installer 500 Aligned with FarCom 300 Cogmind --------- Core Integrity 0/550 Matter 273/300 Energy 149/150 System Corruption 7% Temperature Cool (52) Movement Core (150) Ox2 Location -8/Garrison Parts ------- > --- POWER (1) -------- Micro Nuclear Core > --- PROPULSION (2) --- (None) > --- UTILITY (6) ------ Improved Power Shielding System Shield > --- WEAPON (2) ------- (None) > --- INVENTORY (5) ---- Gravmag System AWS/Gauss Remote Datajack Chainsword Peak State ------------ > --- POWER ------------ Improved Ion Engine > --- PROPULSION ------- Aluminum Leg Carbon-fiber Leg > --- UTILITY ---------- Medium Storage Unit Signal Interpreter Hardened Medium Armor Plating Reflective Plating Trap Reconfigurator Supersonic Drone Bay > --- WEAPON ----------- AWS/Gauss > --- INVENTORY -------- Light Nuclear Core Improved Heat Sink Reaction Control System Heavy EM Pulse Gun Heavy Particle Cannon Datajack Plasma Flamer [Rating: 49] Favorites ----------- Power Light Nuclear Core Engine Improved Ion Engine Power Core Light Nuclear Core Propulsion Compact Wheel Leg Aluminum Leg Wheel Compact Wheel Hover Unit Gravmag System Utility Medium Storage Unit Device Trap Reconfigurator Storage Medium Storage Unit Processor Signal Interpreter Hackware System Shield Protection Improved Power Shielding Weapon Heavy EM Shotgun Energy Gun Heavy EM Shotgun Energy Cannon Heavy Particle Cannon Ballistic Gun AWS/Gauss Launcher Mini Grenade Launcher Special Weapon Plasma Flamer Slashing Weapon Chainsword Special Melee Weapon Datajack Build | -11 -10 -10 -10 -9 -8 -8 ------- Run | Yrd Mat Min Exi Min Mat Gar Slots Evolved 4 | . . . . . 4 . Power . | . . . . . . . Propulsion . | . . . . . . . Utility 4 | . . . . . 4 . Weapon . | . . . . . . . Parts Attached 108 | 6 13 3 6 4 58 18 Power 8 | 1 1 . 1 . 4 1 Engine 4 | 1 1 . 1 . 1 . Core 4 | . . . . . 3 1 Reactor . | . . . . . . . Propulsion 23 | 2 3 . . 1 13 4 Treads . | . . . . . . . Leg 17 | 2 1 . . . 12 2 Wheel 4 | . 2 . . 1 1 . Hover 2 | . . . . . . 2 Flight . | . . . . . . . Utility 29 | 1 4 2 4 . 14 4 Device 14 | . 1 1 2 . 7 3 Storage 6 | 1 2 1 2 . . . Processor 2 | . 1 . . . . 1 Hackware 1 | . . . . . 1 . Protection 6 | . . . . . 6 . Artifact . | . . . . . . . Weapon 48 | 2 5 1 1 3 27 9 Energy Gun 27 | 2 3 1 . 1 15 5 Energy Cannon 7 | . 1 . . 1 3 2 Ballistic Gun 5 | . 1 . 1 1 2 . Ballistic Cannon . | . . . . . . . Launcher 2 | . . . . . 2 . Special Weapon 1 | . . . . . 1 . Impact Weapon . | . . . . . . . Slashing Weapon 5 | . . . . . 4 1 Piercing Weapon . | . . . . . . . Special Melee Weapon 1 | . . . . . . 1 Unidentified Prototypes 9 | . 1 . 3 . 5 . Parts Lost 22 | . 1 2 . 1 5 13 Power . | . . . . . . . Propulsion 5 | . . . . 1 1 3 Utility 10 | . . 1 . . 3 6 Weapon 7 | . 1 1 . . 1 4 Highest Loss Streak 7 | . 1 1 . 1 3 7 To Critical Strikes 2 | . . 1 . . . 1 Average Slot Usage (%) 93 | . 91 91 93 84 96 85 Engine 6 | . 14 14 14 14 . . Core 4 | . . . . . 8 8 Leg 11 | . 20 . . . 17 11 Wheel 9 | . 7 28 28 27 . . Device 11 | . 3 4 . . 18 11 Storage 9 | . 10 2 13 14 9 8 Processor 9 | . 5 14 14 14 7 4 Protection 8 | . . . . . 16 9 Energy Gun 13 | . 22 27 16 . 11 7 Energy Cannon 1 | . 5 . . . 1 2 Ballistic Gun 2 | . . . 5 13 . . Slashing Weapon 1 | . . . . . 1 7 Naked Turns . | . . . . . . . Heaviest Build 41 | 12 22 23 27 27 41 30 Greatest Support 42 | 20 32 32 32 32 42 30 Greatest Overweight (x) 3 | . . . . 1 3 3 Average Overweight (x) . | . . . . . . . Largest Inventory Capacity 10 | 8 10 10 10 10 10 10 Average Capacity 9 | 7 8 5 9 10 10 9 Most Carried 10 | 3 8 10 10 10 10 10 Average Carried 8 | 1 4 5 9 9 9 9 Final Capacity 10 | 8 10 10 10 10 10 5 Final Carried 10 | 1 6 10 10 10 10 5 Class Distribution -------------------- 86% | Mutant 13% | Scavenger-Mutant Dominant Class ---------------- Mutant | -10/Materials Mutant | -10/Mines Mutant | -10/Exiles Mutant | -9/Mines Mutant | -8/Materials Scavenger-Mutant | -8/Garrison Resources | -11 -10 -10 -10 -9 -8 -8 ----------- Run | Yrd Mat Min Exi Min Mat Gar Matter Collected 1239 | 211 189 25 . 95 570 149 Remotely . | . . . . . . . Salvage Created 3798 | . 489 352 . 181 2604 172 Parts 244 | . 33 21 . 10 160 20 Haulers Intercepted 8 | . 2 . . . 6 . Recyclers Shooed 5 | . 1 2 . . 2 . Parts Field Recycled . | . . . . . . . Retrieved Matter . | . . . . . . . Parts Self-Destructed . | . . . . . . . Prevented . | . . . . . . . Kills | -11 -10 -10 -10 -9 -8 -8 ------- Run | Yrd Mat Min Exi Min Mat Gar Combat Hostiles Destroyed 68 | . 11 14 . 5 34 4 Melee 16 | . . . . . 13 3 Guns 42 | . 10 14 . 5 13 . Cannons 1 | . . . . . 1 . AOE 7 | . 1 . . . 5 1 Classes Destroyed 14 | . 4 . . 1 7 2 Worker 7 | . . . . . 7 . Builder 2 | . . . . . 2 . Tunneler 1 | . . . . . 1 . Hauler 8 | . 2 . . . 6 . Recycler 5 | . . . . 1 4 . Mechanic 1 | . . . . . 1 . Operator 3 | . . . . . 3 . Watcher 8 | . 3 . . . 5 . Swarmer 30 | . 6 9 . 5 10 . Grunt 24 | . 5 5 . . 14 . Sentry 8 | . . . . . 8 . Specialist 2 | . . . . . 2 . Hunter 1 | . . . . . . 1 Programmer 3 | . . . . . . 3 Best Kill Streak 5 | . 5 4 . 4 5 2 Combat Bots Only 5 | . 5 4 . 4 5 2 Max Kills in Single Turn 2 | . 1 2 . 1 2 1 Gunslinging 1 | . . 1 . . . . Exploded 1 | . 1 . . . 1 1 Melee 1 | . . . . . 1 1 Uniques/NPCs Destroyed . | . . . . . . . Combat | -11 -10 -10 -10 -9 -8 -8 -------- Run | Yrd Mat Min Exi Min Mat Gar Hostile Shots Fired 375 | . 60 30 . 12 149 124 Missed 94 | . 17 2 . 1 34 40 Damage Taken 4041 | . 527 257 . 89 1875 1293 Core 789 | . 113 114 . 6 300 256 Absorbed by Shields . | . . . . . . . Redirected to Shielding 209 | . . . . . 189 20 Ignored by Resistances 54 | . . . . . 54 . Core Remaining (%) 53 | 100 . . . 6 . . Volleys Fired 179 | . 56 30 . 2 81 10 Largest 2 | . 2 2 . 2 2 2 Hottest 150 | . 100 112 . 131 150 100 Shots Fired 354 | . 95 49 . 13 184 13 Gun 318 | . 88 49 . 11 165 5 Cannon 30 | . 7 . . 2 13 8 Launcher 2 | . . . . . 2 . Special 4 | . . . . . 4 . Kinetic 56 | . 5 . . 9 42 . Thermal 136 | . 64 43 . 4 17 8 Explosive 2 | . . . . . 2 . Electromagnetic 160 | . 26 6 . . 123 5 Robot Hit Streak 14 | . 11 11 . 11 14 3 Robot Miss Streak 4 | . 4 3 . 1 4 1 Penetration Max . | . . . . . . . Secondary Targets 3 | . 1 2 . . . . Max Gunslinging Chain 1 | . 1 1 . . . . Autonomous 52 | . . . . 9 43 . Shots Hit Robots 292 | . 59 30 . 11 176 16 Core Hits 141 | . 26 17 . 6 87 5 Critical Kills . | . . . . . . . Critical Parts Destroyed . | . . . . . . . Critical Strikes 12 | . 2 3 . . 4 3 Burn 5 | . 1 3 . . 1 . Corrupt 2 | . 1 . . . 1 . Sever 5 | . . . . . 2 3 Melee Attacks 77 | . . . . . 51 26 Impact . | . . . . . . . Slashing 77 | . . . . . 51 26 Piercing . | . . . . . . . Sneak Attacks 1 | . . . . . 1 . Combat Hostiles 1 | . . . . . 1 . Follow-up Attacks . | . . . . . . . Damage Inflicted 6796 | . 808 483 . 296 4711 498 Guns 4379 | . 681 483 . 271 2868 76 Cannons 582 | . 89 . . 25 300 168 Explosions 551 | . 38 . . . 481 32 Melee 1244 | . . . . . 1022 222 Ramming . | . . . . . . . Kinetic 1404 | . 26 . . 238 1140 . Thermal 2006 | . 554 419 . 58 775 200 Explosive 46 | . . . . . 46 . Electromagnetic 2096 | . 228 64 . . 1728 76 Impact . | . . . . . . . Slashing 1244 | . . . . . 1022 222 Piercing . | . . . . . . . Highest Corruption 7 | . . . . . . 7 Average Corruption 4 | . . . . . . 4 Corruption Purged . | . . . . . . . Corruption Blocked . | . . . . . . . Effects 8 | . . . . . . 8 Message Errors 1 | . . . . . . 1 Matter Fused 3 | . . . . . . 3 Energy Discharges 2 | . . . . . . 2 Misfires 1 | . . . . . . 1 Alerts 1 | . . . . . . 1 Overload Shots . | . . . . . . . Overflow Damage 94 | . . . . . 87 7 Projectiles 7 | . . . . . . 7 Explosions 16 | . . . . . 16 . Melee 71 | . . . . . 71 . Knockbacks . | . . . . . . . Impact . | . . . . . . . Kinetic . | . . . . . . . Secondary . | . . . . . . . Self-Inflicted Damage 223 | . 31 . . . 177 15 Shots 8 | . 1 . . . 6 1 Rammed . | . . . . . . . Targets Rammed . | . . . . . . . Kicked . | . . . . . . . Crushed . | . . . . . . . Highest Temperature 389 | . 331 243 . 72 389 52 Average Temperature 83 | . 98 106 . 41 70 23 Received Heat Transfer 831 | . 228 45 . . 558 . Effects 2 | . . 1 . . 1 . Shutdowns 1 | . . . . . 1 . Energy Bleed 1 | . . 1 . . . . Siege Activations . | . . . . . . . Robots Corrupted 1 | . . . . . 1 . Combat Hostiles 1 | . . . . . 1 . Parts Fried 11 | . 2 . . . 9 . Impact Corruptions . | . . . . . . . Robots Melted 1 | . . . . . 1 . Combat Hostiles 1 | . . . . . 1 . Parts Melted 6 | . 1 4 . . 1 . Heat Transferred 4135 | . 1271 1147 . 111 1394 212 Parts Sabotaged . | . . . . . . . Parts Stolen . | . . . . . . . Parts Stripped . | . . . . . . . Power Chain Reactions 11 | . 1 . . . 9 1 Alert | -11 -10 -10 -10 -9 -8 -8 ------- Run | Yrd Mat Min Exi Min Mat Gar Peak Influence 719 | . 241 317 . 120 719 543 Initial 467 | . . 37 . . . 467 Average 284 | . 90 174 . 81 385 507 Maximum Alert Level 3 | . 1 1 . . 3 2 Low Security (%) 45 | 100 84 65 . 100 22 . Level 1 21 | . 15 34 . . 28 . Level 2 30 | . . . . . 45 100 Level 3 1 | . . . . . 2 . Level 4 . | . . . . . . . Level 5 . | . . . . . . . High Security . | . . . . . . . Max Security . | . . . . . . . Squads Dispatched 11 | . 2 1 . . 8 . Investigation 4 | . . 1 . . 3 . Extermination . | . . . . . . . Reinforcement 6 | . 2 . . . 4 . Assault . | . . . . . . . Garrison 1 | . . . . . 1 . Intercept . | . . . . . . . Searches Triggered . | . . . . . . . Construction Impeded . | . . . . . . . Haulers Reinforced . | . . . . . . . Active Scanning Responses . | . . . . . . . Cargo Convoy Interrupts . | . . . . . . . Stealth | -11 -10 -10 -10 -9 -8 -8 --------- Run | Yrd Mat Min Exi Min Mat Gar Distress Signals 8 | . 2 1 . . 5 . Communications Jammed . | . . . . . . . Distress Signals . | . . . . . . . Times Spotted 114 | . 20 17 . 8 60 9 Peak Tracking Total 8 | . 8 6 . 4 6 5 Tactical Retreats 14 | . . 2 . 1 10 1 Traps | -11 -10 -10 -10 -9 -8 -8 ------- Run | Yrd Mat Min Exi Min Mat Gar Traps Triggered 2 | . . . . . . 2 Indirectly . | . . . . . . . Trap Hack Attempts . | . . . . . . . Triggered . | . . . . . . . Disarmed . | . . . . . . . Reprogrammed . | . . . . . . . Reused . | . . . . . . . Traps Reconfigurated 7 | . . . . . 7 . Traps Extracted . | . . . . . . . Installed . | . . . . . . . Triggered 2 | . . . . . 2 . Machines | -11 -10 -10 -10 -9 -8 -8 ---------- Run | Yrd Mat Min Exi Min Mat Gar Machines Disabled 12 | . 1 . . 1 10 . Max in Single Turn 1 | . 1 . . 1 1 . Machines Repaired . | . . . . . . . Machines Dismantled . | . . . . . . . Machines Sabotaged . | . . . . . . . Overloaded Fab Kills . | . . . . . . . Hacking | -11 -10 -10 -10 -9 -8 -8 --------- Run | Yrd Mat Min Exi Min Mat Gar Machines Accessed 24 | . 5 1 4 . 14 . Terminals 12 | . 4 . . . 8 . Fabricators . | . . . . . . . Repair Stations 1 | . . . . . 1 . Recycling Units 3 | . 1 . . . 2 . Scanalyzers 2 | . . . . . 2 . Garrison Access 1 | . . . . . 1 . Total Hacks 95 | . 6 1 49 . 39 . Successful 80 | . 5 1 49 . 25 . Failed 15 | . 1 . . . 14 . Catastrophic 5 | . . . . . 5 . Database Lockouts . | . . . . . . . Manual 1 | . . . 1 . . . Terminals 30 | . 5 . . . 25 . Fabricators . | . . . . . . . Repair Stations 2 | . . . . . 2 . Recycling Units 4 | . 1 . . . 3 . Scanalyzers 8 | . . . . . 8 . Garrison Access 1 | . . . . . 1 . Terminal Hacks 69 | . 4 1 49 . 15 . Record 50 | . 1 . 49 . . . Prototype ID Bank 1 | . . . . . 1 . Open Door 1 | . . 1 . . . . Emergency Access Points 2 | . . . . . 2 . Terminal Index 1 | . . . . . 1 . Alert Level 9 | . . . . . 9 . Unreport Threat 1 | . . . . . 1 . Locate Traps 1 | . 1 . . . . . Dispatch Records 1 | . . . . . 1 . Reinforcement Status 1 | . 1 . . . . . Registered Components 1 | . 1 . . . . . Fabricator Hacks . | . . . . . . . Repair Station Hacks 2 | . . . . . 2 . Scan Component 1 | . . . . . 1 . Repair 1 | . . . . . 1 . Recycling Unit Hacks 4 | . 1 . . . 3 . Report Inventory 3 | . 1 . . . 2 . Retrieve Components 1 | . . . . . 1 . Scanalyzer 4 | . . . . . 4 . Insert Component 3 | . . . . . 3 . Analyze 1 | . . . . . 1 . Garrison Access Hacks 1 | . . . . . 1 . Unlock Access 1 | . . . . . 1 . Unauthorized Hacks . | . . . . . . . Terminals . | . . . . . . . Fabricators . | . . . . . . . Repair Stations . | . . . . . . . Recycling Units . | . . . . . . . Scanalyzers . | . . . . . . . Garrison Access . | . . . . . . . Data Cores Recovered 2 | . . . . . 2 . Used 2 | . . . . . 2 . Hacking Detections 12 | . 2 . . . 10 . Full Trace Events 3 | . . . . . 3 . Feedback Events . | . . . . . . . Feedback Blocked . | . . . . . . . Robot Schematics Acquired . | . . . . . . . Robots Built . | . . . . . . . Authchips . | . . . . . . . Time . | . . . . . . . Total Robot Build Rating . | . . . . . . . Part Schematics Acquired 1 | . . . . . 1 . Parts Built . | . . . . . . . Authchips . | . . . . . . . Time . | . . . . . . . Total Part Build Rating . | . . . . . . . Parts Repaired . | . . . . . . . Time 38 | . . . . . 38 . Parts Recycled . | . . . . . . . Recycled Matter . | . . . . . . . Retrieved Matter . | . . . . . . . Retrieved Components 7 | . . . . . 7 . Parts Scanalyzed 1 | . . . . . 1 . Part Schematics Acquired 1 | . . . . . 1 . Parts Damaged . | . . . . . . . Bothacking | -11 -10 -10 -10 -9 -8 -8 ------------ Run | Yrd Mat Min Exi Min Mat Gar Used RIF Installer 1 | . . . . . . 1 Robots Hacked . | . . . . . . . Non-combat . | . . . . . . . Combat . | . . . . . . . Robot Hacks Applied . | . . . . . . . Relay Couplers Released . | . . . . . . . Fabnet Peak Effective % . | . . . . . . . Robots Rewired . | . . . . . . . Allies Hacked . | . . . . . . . Hacks Repelled . | . . . . . . . Allies | -11 -10 -10 -10 -9 -8 -8 -------- Run | Yrd Mat Min Exi Min Mat Gar Total Allies 3 | . . . . 3 . . Largest Group 3 | . . . . 3 3 . Highest-Rated Group 40 | . . . . 40 40 . Highest-Rated Ally 16 | . . . . 16 16 . Total Orders . | . . . . . . . Ally Attacks 37 | . . . . 4 33 . Total Damage 410 | . . . . 34 376 . Kills 7 | . . . . 2 5 . Allies Corrupted . | . . . . . . . Allies Melted . | . . . . . . . Intel | -11 -10 -10 -10 -9 -8 -8 ------- Run | Yrd Mat Min Exi Min Mat Gar Robot Analysis Total . | . . . . . . . Derelict Logs Recovered 3 | . . 2 . 1 . . Drone Launches 1 | . . . . . 1 . Drone Recoveries . | . . . . . . . Exploration | -11 -10 -10 -10 -9 -8 -8 ------------- Run | Yrd Mat Min Exi Min Mat Gar Turns Passed 7510 | 45 972 699 651 945 3809 389 Spaces Moved 4730 | 31 669 556 623 740 1938 173 Core 8 | 7 . . . . . 1 Treads . | . . . . . . . Legs 2410 | 24 449 . . . 1851 86 Wheels 2226 | . 220 556 623 740 87 . Hover 86 | . . . . . . 86 Flight . | . . . . . . . Fastest Speed 50 | 50 100 100 100 100 115 116 Average Speed 119 | 104 113 100 100 100 139 131 Slowest Speed 330 | 120 120 100 100 115 330 250 Overloaded Moves . | . . . . . . . Propulsion Burnouts . | . . . . . . . Robots Hopped . | . . . . . . . Cave-ins Triggered 1 | . . . . . . 1 Exploration Rate (%) 65 | 3 88 88 73 94 85 29 Regions Visited 6 Branch Regions 3 Pre-discovered Areas 2 | . . . 1 1 . . Known Exits Taken 5 | . 1 1 1 1 1 . Unknown Exits Taken 1 | 1 . . . . . . Scrap Searched 3 | . . 1 . 2 . . Spaces Dug 21 | . . . . . 12 9 Terrain Destroyed 92 | . 4 . . 7 65 16 Melee 21 | . . . . . 12 9 Projectile 24 | . . . . 7 17 . AOE 47 | . 4 . . . 36 7 Terrain Rammed . | . . . . . . . Walls Destroyed . | . . . . . . . Machines Disabled . | . . . . . . . Actions | -11 -10 -10 -10 -9 -8 -8 --------- Run | Yrd Mat Min Exi Min Mat Gar Total 6195 | 43 792 651 656 937 2835 281 Wait 930 | . 17 51 . 182 636 44 Move 4725 | 30 668 555 622 739 1938 173 Hop . | . . . . . . . Pick Up 87 | 7 21 9 12 5 28 5 Fast Attach 17 | . 2 1 2 1 8 3 Attach 44 | 6 5 2 2 3 20 6 Detach 8 | . . . . . 7 1 Swap 47 | . 6 . 2 . 30 9 Drop 76 | . 17 3 13 5 34 4 Fire 179 | . 56 30 . 2 81 10 Melee 77 | . . . . . 51 26 Ram . | . . . . . . . Kick . | . . . . . . . Crush . | . . . . . . . Escape Stasis . | . . . . . . . Rewire 5 | . . . 3 . 2 . Trap . | . . . . . . . Miscellaneous . | . . . . . . . Route ------- -11/Scrapyard -10/Materials (discovered 4 exits: *Mat x2 / *Min x2) -10/Mines (discovered 2 exits: *Mat / *Exi) -10/Exiles (discovered 2 exits: *Min x2) -9/Mines -8/Materials (discovered 4 exits: *Fac x3 / Gar) -8/Garrison History --------- Turn | Location | Event 4 | -11/Scrapyard | Discovered new exit (range 16) 46 | -11/Scrapyard | Entered Materials 316 | -10/Materials | Build established: Mutant 347 | -10/Materials | Discovered new exit (range 13) 486 | -10/Materials | Discovered new exit (range 16) 617 | -10/Materials | Identified exit to Mines 747 | -10/Materials | Discovered exit to Mines (range 12) 802 | -10/Materials | Discovered new exit (range 5) 808 | -10/Materials | Identified exit to Materials 1018 | -10/Materials | Entered Mines 1095 | -10/Mines | Met a Derelict shopkeep closing up shop 1160 | -10/Mines | Met a Derelict bent on vengeance 1176 | -10/Mines | Learned location of 1 exit from Materials 1185 | -10/Mines | Core integrity fell below 50% 1268 | -10/Mines | Deemed a non-threat by the Exiles lab entrance 1269 | -10/Mines | Discovered new exit (range 5) 1272 | -10/Mines | Identified exit to Exiles 1306 | -10/Mines | Learned Materials trap positions 1321 | -10/Mines | Discovered exit to Materials (range 8) 1479 | -10/Mines | Core integrity fell below 20% 1717 | -10/Mines | Entered Exiles 1733 | -10/Exiles | Discovered new exit (range 14) 1745 | -10/Exiles | Identified exit to Mines 1765 | -10/Exiles | Met 8R-AWN 1781 | -10/Exiles | Met EX-HEX 1848 | -10/Exiles | Met EX-DEC 1917 | -10/Exiles | Met EX-BIN 1952 | -10/Exiles | Learned location of Zion (-6) 2023 | -10/Exiles | Aligned with FarCom system 2024 | -10/Exiles | Given EX-Vault access code 2073 | -10/Exiles | Opened EX-Vault 2080 | -10/Exiles | Found Prototype Device 2083 | -10/Exiles | Identified Supersonic Drone Bay 2086 | -10/Exiles | Found Prototype Device 2086 | -10/Exiles | Identified Trap Reconfigurator 2093 | -10/Exiles | Found Prototype Ballistic Gun 2095 | -10/Exiles | Identified AWS/Gauss 2149 | -10/Exiles | Warned to stay clear of 0b10 Research branches 2258 | -10/Exiles | Discovered exit to Mines (range 11) 2368 | -10/Exiles | Stole three prototypes: AWS/Gauss, Trap Reconfigurator, Supersonic Drone Bay 2368 | -10/Exiles | Entered Mines 2436 | -9/Mines | Assisted by bots powering up and referring to "LRC-V3" 2463 | -9/Mines | Learned location of Storage (-7) 2861 | -9/Mines | Discovered new exit (range 13) 2877 | -9/Mines | Identified exit to Materials 2933 | -9/Mines | A weapon hastily lodged in a ceiling crevice suddenly fell to the ground 3313 | -9/Mines | Entered Materials 3313 | -8/Materials | Accompanied by 3 allies 3313 | -8/Materials | Evolved 4 slots: Utility x4 3314 | -8/Materials | Identified exit to Factory 3315 | -8/Materials | Loaded intel: 19 trap records 3585 | -8/Materials | Lost 3 allies 4093 | -8/Materials | Build established: Scavenger-Mutant 4093 | -8/Materials | Discovered exit to Factory (range 4) 4731 | -8/Materials | Build established: Mutant 5025 | -8/Materials | Discovered exit to Factory (range 16) 5634 | -8/Materials | Garrison activated, responded to threat 6602 | -8/Materials | Lost 3 parts (2u1w) 6994 | -8/Materials | Core integrity fell below 50% 7122 | -8/Materials | Identified exit to Garrison 7122 | -8/Materials | Entered Garrison 7247 | -8/Garrison | Installed Relay Interface Framework 7401 | -8/Garrison | Crushed by falling debris 7508 | -8/Garrison | Core integrity fell below 20% 7511 | -8/Garrison | Destroyed by X-57 Shotgunner with Shotgun Last Messages --------------- 07401_ Imp. Signal Interpreter destroyed. 07401_ System corrupted by crushing effect (+1). 07401_ Imp. Heat Sink destroyed. 07401_ System corrupted by crushing effect (+2). 07447_ System corrupted: Matter fused (-9). 07494_ Triggered Alarm Trap. 07494_ An alarm sounds. 07495_ W-25 Informer springs to life. 07495_ Machine disabled. 07499_ Hvy. EM Shotgun destroyed. 07501_ Carbon-fiber Leg destroyed. 07504_ X-57 Shotgunner IFF system glitched. 07504_ X-57 Shotgunner suffers critical hit (Destroy). 07504_ Critical hit (Destroy). 07504_ Hvy. EM Shotgun destroyed. 07507_ Imp. Heat Sink destroyed. 07508_ Med. Storage Unit destroyed. 07510_ Hvy. Particle Cannon destroyed. [Achievement: Just Browsing] Map ----- +----------------------------------------------------+ | ?????????????????????????????????????????????????? | | ?????????????????????????????????????????????????? | | ?????????????????????????????????????????????????? | | ????????????????###########??????????????????????? | | ????????????????# " " #??????????????????????? | | ????????????????# ##?????????????????????? | | ???????????????## #?????????????????????? | | ????????????#### #??????????????????????? | | ?????????####"### #??????????????????????? | | ?????????# ## # #??????????????????????? | | ?????????# ![# | #" "#??????????????????????? | | ?????????# ] [##% #" "#??????????????????????? | | ?????????### [[=!! #"""#??????????????????????? | | ???????????#= |##=""""#####??????????????????????? | | ???????????#=**########??????????????????????????? | | ???????????# #?????????????????????????????????? | | ???????????# #?????????????????????????????????? | | ???????????# #?############????????????????????? | | ???????????# #?#""""""""""#????????????????????? | | ???????????# #?#"""=!!!"""#????????????????????? | | ???????????# #?#"" ""#????????????????????? | | ???????????# #?#"* !"#????????????????????? | | ???????????# #?#"! ++++ ! #????????????????????? | | ???????????# #?#"]?# xx!!/#????????????????????? | | ???????????# #?#"! # x!!"#????????????????????? | | ???????????# #?#"* //x/@!"#????????????????????? | | ???????????# #?#"! ! #????????????????????? | | ???????????# #?#"" ""#????????????????????? | | ???????????# #?### ###????????????????????? | | ???????????# #???# w #??????????????????????? | | ???????????# ######### #??????????????????????? | | ############ ##"#######;#??????????????????????? | | # #??????????????????????? | | # #??????????????????????? | | #####"""## "### #### #??????????????????????? | | ???????????# "#?# #??# #??????????????????????? | | ???????###?# ##?# #??# #??????????????????????? | | ???????# #?# #??# #??# #??????????????????????? | | ???????# #?# #??# #??# #??????????????????????? | | ???????# #?# #??# #??# #?Y????????????????????? | | ##?????# ### #############"????????????????????? | | "####### # ???????????????????? | | """### ???????????????????? | | [ ???????????????????? | | """############## ## ????????????????????? | | ## # ##??????????????? #??????????????????????? | | ##"#"####????????????????????????????????????????? | | ?###### #????????????????????????????????????????? | | ???????##????????????????????????????????????????? | | ?????????????????????????????????????????????????? | +----------------------------------------------------+ Best States ------------- Heat Dissipation 72 Energy Generation 15 Energy Capacity 265 Matter Stores 300 Matter Capacity 300 Sight Range 16 Robot Scan Range 14 Terrain Scan Density 10 Additional Mass Support 9 Armor Coverage 375 Resistance: TH 10 Power Shielding 66 Weapon Shielding 66 Evasion (%) 55 Defensive Hacking 10 Item Schematics ----------------- Chainsword | -8/Materials | Scanalyzed Robot Schematics ------------------ None Fabricated ------------ Nothing Alien Tech Used ----------------- None Achievements -------------- Close Call Just Browsing Challenges ------------ None Game ------ Seed ClaymoresHardenedRigger Manual? 0 Play Time 01:45:15 Cumulative 38.8 hours Start 2024.03.23 @ 05:37:04 End 2024.03.23 @ 07:23:45 Sessions 1 Manual Loads 0 Difficulty Rogue Special Mode None Game No. 24 Rogue 22 Adventurer 0 Explorer 2 Win Type - Total 0 Types 0/0/0/0/0/0/0/0/0 Lore% 15 Gallery% 25 Achievement% 18 Wizard Run 0 Options --------- Layout 1 ASCII 0 Keyboard 0 Movement Mouse Keybinds 0 Fullscreen 2 Font 48/Tamsyn Map View 50x35 Zoom Use 0% Tactical HUD 1 Map Filters NONE Filters NONE Steam 1 RUN: 621acf9b-6092-4ae4-9a08-45dae05aa0c5